{"text_format":"1","workbook":"xlsx","n_sheets":10,"sheets":["Investments Form","Investment Assumptions","Income Statement Form","Income Statement Assumptions","Operating Assumptions Form","Cash Flow Statement Form","Cash Flow Statement Assumptions"," Recapture of Investment Form","Recapture of Inv Assumptions","CUA2018"],"not_rendered":{"charts":0,"images":0,"macros":1,"external_links":3,"defined_names":60,"comments":0,"pivot_tables":0},"unopened":[],"bounds":{"document_bytes":16777216,"sheet_cells":100000,"rows_first":2000,"rows_last":500,"rows_between":2000,"halvings":0,"cell_chars":16384,"cell_head_chars":4096},"cells_cut":0,"cells_raw":0,"read":"whole","date_system":"1900"}

{"sheet":"Investments Form","index":0,"n_rows":61,"n_cols":8,"rows_kept":61,"cut":false,"hidden":false,"merged":[[29,1,29,3],[48,0,48,7],[58,0,58,7],[60,0,60,7],[50,0,50,7],[51,0,51,7],[52,0,52,7],[53,0,53,7],[54,0,54,7],[57,0,57,7],[49,0,49,7],[25,1,25,3],[26,1,26,3],[27,1,27,3],[28,1,28,3],[14,1,14,3],[15,1,15,3],[16,1,16,3],[17,1,17,3],[18,1,18,3]]}
["INITIAL INVESTMENTS AND START-UP EXPENSES FORM"]
[]
["Grey Cells Are Input Cells"]
[]
[null,"Name of Offeror"]
[]
[null,"CONCID","CC-ACAD01X-24"]
[]
[]
["Assets "]
["Existing Assets"]
["Assets necessary to the operation of the Concession, already owned by the Offeror, that will "]
["be allocated to the operation of the Draft Contract. "]
[]
[]
[null,"Buses (see note on Investment Assumptions sheet)"]
[null,"All Other Personal Property"]
[null,"Inventory and Supplies"]
[null,"Other (describe)"]
[]
[null,null,null,null,"Subtotal",null,{"$f":"SUM(G15:G19)","v":0}]
["Planned Asset Acquisition"]
["Assets necessary to Operate the Concession, that will be acquired by the Offeror "]
["if awarded the Draft Contract."]
[]
[]
[null,"Buses (see note on Investment Assumptions sheet)"]
[null,"All Other Personal Property"]
[null,"Inventory and Supplies"]
[null,"Other (describe)"]
[]
[null,null,null,null,"Subtotal",null,{"$f":"SUM(G26:G30)","v":0}]
[]
[null,null,null,null,null,"Total",null,{"$f":"G21+G32","v":0}]
[]
["Other"]
[]
[null,null,null,"Start-Up Expenses"]
[null,null,null,"Working Capital"]
[]
[null,null,null,"Other (describe)"]
[]
[null,null,null,null,null,"Total",null,{"$f":"SUM(G38:G41)","v":0}]
[]
[]
["Total Initial Investments and Start-up Expenses",null,null,null,null,null,null,{"$f":"+H43+H34","v":0}]
[]
["Notes"]
["1) Formulas included in this form are provided by the NPS as guidance only. The Offeror is responsible for its financial projections and their accuracy."]
["2) Yellow cells represent categories that need to be explained on the \"Investments Assumptions\" worksheet."]
["3) All Offerors must include their estimate of the value of all property intended, whether planned for acquisition or currently owned, for use in the Draft Contract."]
["4) The items indicated above are the estimated planned expenditures for initial investment, defined as one-time costs in either the year prior to or the first year after the start of the Draft Contract."]
["5) Expenditures entered in this form should be in addition to that of typical annual capital investments and operating expenses of the first year of the Draft Contract. "]
["6) Expenditures entered into this form should not be included in the proforma income statement. "]
["7) Expenditures entered in this form should be included in the cash flow proforma as capital expenditures in either the year prior to or the first year after the start of the Draft Contract. "]
[]
["Definitions"]
["Start-up Expenses"]
["One-time expenses incurred prior to the beginning of the contract, or during the first year of the contract, if needed, to implement your proposal."]
["Working Capital"]
["Additional funds for working capital current assets such as pre-paid expenses, contingencies, and other necessary cash flow requirements. This should not be confused with Net Working Capital (current assets-current liabilities). "]

{"sheet":"Investment Assumptions","index":1,"n_rows":39,"n_cols":5,"rows_kept":39,"cut":false,"hidden":false,"merged":[[31,0,31,3],[31,4,31,7],[33,0,33,3],[33,4,33,7],[25,0,25,3],[25,4,25,7],[26,0,26,3],[26,4,26,7],[30,0,30,3],[30,4,30,7],[17,0,17,3],[17,4,17,7],[23,0,23,3],[23,4,23,7],[24,0,24,3],[24,4,24,7],[14,0,14,3],[14,4,14,7],[15,0,15,3],[15,4,15,7],[16,0,16,3],[16,4,16,7]]}
["INITIAL INVESTMENTS AND START-UP EXPENSES ASSUMPTIONS"]
[]
["Grey Cells Are Input Cells"]
[]
[null,"Name of Offeror"]
[]
[null,"CONCID","CC-ACAD01X-24"]
[]
[]
["Assets "]
["Existing Assets"]
["Assets necessary to the operation of the Concession, already owned by the Offeror, that will be allocated to "]
["the operation of the Draft Contract. "]
[]
["Buses",null,null,null,"Describe"]
["All Other Personal Property",null,null,null,"Describe"]
["Inventory and Supplies",null,null,null,"Describe"]
["Other (describe)",null,null,null,"Describe"]
[]
[]
["Planned Asset Acquisition"]
["Assets necessary to Operate the Concession, that will be acquired by the Offeror if awarded the Draft Contract."]
[]
["Buses (include investments for permanent fleet as well as any lease or other costs for temporary fleet)",null,null,null,"Describe"]
["All Other Personal Property",null,null,null,"Describe"]
["Inventory and Supplies",null,null,null,"Describe"]
["Other (describe)",null,null,null,"Describe"]
[]
["Other"]
[]
["Start-Up Expenses",null,null,null,"Describe"]
["Working Capital",null,null,null,"Describe"]
[]
["Other (describe)",null,null,null,"Describe"]
[]
[]
["Notes"]
["In the description sections of this form, please provide an explanation of sufficient detail to allow "]
["a reviewer to fully understand how the estimates were determined. "]

{"sheet":"Income Statement Form","index":2,"n_rows":101,"n_cols":11,"rows_kept":101,"cut":false,"hidden":false,"merged":[[96,0,96,10],[98,0,98,10],[88,0,88,10],[89,0,89,10],[90,0,90,10],[91,0,91,10],[93,0,93,10],[95,0,95,10]]}
["INCOME STATEMENT FORM"]
[]
["Grey Cells Are Input Cells"]
[]
["Name of Offeror"]
[]
["CONCID","CC-ACAD01X-24"]
[]
["Prospective Income Statement"]
[]
[null,2021,{"$f":"B11+1","v":2022},2023,2024,2025,2026,2027,2028,2029,2030]
[]
["Revenue"]
["Interpretive Bus Tours"]
[]
[]
["Other (Specify)"]
[]
["Total Gross Revenue",{"$f":"SUM(B14:B17)","v":0},0,0,0,0,0,0,0,0,0]
["Total Deductions"]
["Total Gross Receipts",{"$f":"B19-B20","v":0},0,0,0,0,0,0,0,0,0]
[]
["Cost of Sales"]
[]
[]
["Other (Specify)"]
[]
["Total Cost of Sales",{"$f":"SUM(B24:B26)","v":0},0,0,0,0,0,0,0,0,0]
[]
["Gross Profit",{"$f":"B21-B28","v":0},0,0,0,0,0,0,0,0,0]
[]
["Direct Expenses"]
["Interpretive Bus Tours"]
["Labor"]
["Repair & Maintenance"]
["Fuel"]
["Other Direct"]
["Interpretive Bus Tours Direct Expenses",{"$f":"SUM(B34:B37)","v":0},0,0,0,0,0,0,0,0,0]
[]
["Authorized Services (Specify)"]
["Labor"]
["Other Departmental Expenses"]
["Total Authorized Services Expenses",{"$f":"SUM(B41:B42)","v":0},0,0,0,0,0,0,0,0,0]
[]
["Other (Specify)"]
["Labor"]
["Other Departmental Expenses"]
["Total Other (Specify) Expenses",{"$f":"SUM(B46:B47)","v":0},0,0,0,0,0,0,0,0,0]
[]
["Total Direct Expenses",{"$f":"SUM(B38,B43,B48)","v":0},0,0,0,0,0,0,0,0,0]
[]
["Undistributed Expenses"]
["Other Salaries"]
["Office Supplies"]
["Telecommunications"]
["Management / Overhead"]
["Advertising"]
["Utilities"]
["Other Undistributed"]
[]
["Total Undistributed Expenses",{"$f":"SUM(B53:B59)","v":0},0,0,0,0,0,0,0,0,0]
[]
["Fixed Expenses"]
["Insurance"]
["Rent (staging and office space)"]
["Other (Specify)"]
[]
["Total Fixed Expenses",{"$f":"SUM(B64:B66)","v":0},0,0,0,0,0,0,0,0,0]
[]
["Total Operating Expenses",{"$f":"B28+B50+B61+B68","v":0},0,0,0,0,0,0,0,0,0]
[]
["EBITDA Before FF",{"$f":"B19-B70","v":0},0,0,0,0,0,0,0,0,0]
[]
["Franchise Fee"]
[]
["EBITDA",{"$f":"B72-B74","v":0},0,0,0,0,0,0,0,0,0]
[]
["Interest Expense"]
["Depreciation"]
["Amortization"]
[]
["Net Profit Before Taxes",{"$f":"B76-SUM(B78:B80)","v":0},0,0,0,0,0,0,0,0,0]
[]
["Income Tax"]
[]
["Net Income",{"$f":"B82-B84","v":0},0,0,0,0,0,0,0,0,0]
[]
["Notes"]
["1) Formulas included in this form are provided by the NPS as guidance only. The Offeror is responsible for its financial projections and their accuracy."]
["2) Yellow cells represent categories that need to be explained on the \"Income Statement Assumptions\" worksheet."]
["3) Only projected receipts and expenses related to the services “required” by the contract and those you choose to operate under “authorized” services are to be itemized and included in your prospective statements.  Please clearly identify, by service type, all revenues associated with authorized services."]
["4) The NPS views the treatment of Repair and Maintenance Reserve (component renewal) items as leasehold improvements.  It is expected that the cost will be amortized over the shorter of the useful life  "]
["of the asset or the contract term. "]
[]
["Definitions"]
["Gross Receipts"]
[" Gross Revenues less any revenues that are exempt from franchise fee."]
["EBITDA FF "]
["Earnings Before Interest, Taxes, Depreciation, Amortization, and Franchise Fee."]
["Franchise Fees"]
["A percentage of gross receipts due to the National Park Service. "]

{"sheet":"Income Statement Assumptions","index":3,"n_rows":53,"n_cols":2,"rows_kept":53,"cut":false,"hidden":false,"merged":[[46,0,46,5],[47,0,47,6],[52,0,52,5],[34,1,34,5],[35,1,35,5],[36,1,36,5],[37,1,37,5],[38,1,38,5],[45,0,45,5],[30,1,30,5],[33,1,33,5],[24,1,24,5],[25,1,25,5],[26,1,26,5],[27,1,27,5],[28,1,28,5],[29,1,29,5],[21,1,21,5],[10,1,10,5],[15,1,15,5],[18,1,18,5],[19,1,19,5],[20,1,20,5]]}
["INCOME STATEMENT ASSUMPTIONS"]
[]
["Grey Cells Are Input Cells"]
[]
["Name of Offeror"]
[]
["CONCID",{"$f":"'Investment Assumptions'!C7","v":"CC-ACAD01X-24"}]
[]
[]
["Revenue"]
["See Operating Assumptions Tab"]
[]
[]
[]
["Cost of Sales"]
["All Applicable Departments\n","Describe"]
[]
["Direct Expenses"]
["Labor","Describe"]
["Repair and Maintenance Expense","Describe"]
["Fuel","Describe"]
["Other Direct","Describe"]
[]
["Undistributed Expenses"]
["Other Salaries","Describe"]
["Office Supplies","Describe"]
["Telecommunications","Describe"]
["Management Fee / Overhead","Describe"]
["Advertising","Describe"]
["Utilities","Describe"]
["Other Undistributed","Describe"]
[]
["Fixed Expenses"]
["Insurance","Describe"]
["Rent","Describe"]
["Interest Expense","Describe"]
["Depreciation","Describe"]
["Amortization","Describe"]
["Other","Describe"]
["Taxes"]
["Income Taxes","Describe"]
["Franchise Fee"]
["Franchise Fee","Describe"]
[]
["Notes"]
["1) In the description sections of this form, please provide an explanation of sufficient detail to allow a reviewer to fully understand how the estimates were determined. "]
["2)If you are going to offer authorized services, please clearly identify which service(s) you will offer and use additional separate rows for each authorized service department. Labor costs should be supported by a footnote identifying Full Time Equivalents (FTE) occupied for each operating department identified."]
["3) Clearly describe the composition of each item classified under Undistributed and Fixed Expenses. If the expense item is allocated from or shared with a parent or related entity, please describe the allocation method. In particular, if you intend to assess a Management Fee, or other form of corporate overhead and profit, you must clearly describe what this fee is comprised of (Officer salaries, human resources, accounting, marketing, profit, etc.)."]
[]
["Expense Assumption Description Example"]
["***The following example does not reflect the above opportunity and is provided for the purpose of clarification only.***"]
[]
["Direct expenses are expected to surpass historical direct expenses, as fuel and insurance prices increase.  Studies by the Department of Commerce indicate that fuel prices will to rise at a rate of 10% annually over the next ten years, as opposed to the historical ten year rate of 4% annually.  Additionally, insurance costs, according to a nationwide insurance broker survey, are expected to rise at 15% annually for the next 10 years, as opposed to the 10 year historical rate of 2% annually.  Accordingly, direct expenses associated with the operation are forecast to increase from an annual average of 10% of Gross Revenue to an annual average of 20% of Gross Revenues over the life of the Draft Contract."]

{"sheet":"Operating Assumptions Form","index":4,"n_rows":41,"n_cols":13,"rows_kept":41,"cut":false,"hidden":false,"merged":[[35,0,35,10],[39,0,39,10],[40,0,40,10],[10,12,11,16],[16,12,17,16],[21,12,22,16],[27,12,28,16],[33,0,33,10],[34,0,34,10]]}
["OPERATING ASSUMPTIONS"]
[]
["Grey Cells Are Input Cells"]
[]
["Name of Offeror "]
[]
["CONCID","CC-ACAD01X-24"]
[]
[null,2021,{"$f":"B9+1","v":2022},2023,2024,2025,2026,2027,2028,2029,2030]
[]
["Revenue Inflation","-",null,null,null,null,null,null,null,null,null,null,"Additional Description"]
["Expense Inflation","-"]
[]
[]
[]
["Interpretive Bus Tours"]
["Number of Passengers",null,null,null,null,null,null,null,null,null,null,null,"Additional Description"]
["Transportation Revenue per Passenger"]
["Total Revenue",{"$f":"B18*B17","v":0},0,0,0,0,0,0,0,0,0]
[]
["Other"]
["Number of Passengers",null,null,null,null,null,null,null,null,null,null,null,"Additional Description"]
["Average Expenditure per Passenger"]
["Total Revenue",{"$f":"B23*B22","v":0},0,0,0,0,0,0,0,0,0]
[]
[]
["Other (describe)"]
["Number of Customers",null,null,null,null,null,null,null,null,null,null,null,"Additional Description"]
["Average Revenue Per Customer"]
["Total Revenue",{"$f":"B29*B28","v":0},0,0,0,0,0,0,0,0,0]
[]
[]
["Notes"]
["1) Please note that revenue projections must be based on rates determined by the approval methods set forth in the draft Operating Plan. "]
["2) The information on this form should fully explain and document your Gross Revenue build-up. State annual inflation rate assumptions, rate increase assumptions, ridership assumptions, utilization assumptions and any estimates of real growth you anticipate.   If you have any additional descriptions of your assumptions, please use the \"Additional Description\" boxes to the right of each revenue department."]
["3) If you are going to offer authorized services, please clearly identify which service(s) you will offer and use additional rows to describe your revenue buildup for each authorized service."]
[]
["Examples"]
["Revenue Assumption Description Example"]
["***The following example does not reflect the above opportunity and is provided for the purpose of clarification only.***"]
["Revenue inflation is expected increase at the same rate as the Consumer Price Index which is predicted to grow at a rate of 2.7% annually, based upon historical growth as reported by the Bureau of Labor Statistics.  No real growth is expected to occur, keeping in line with historical revenues at the concession.  Therefore, overall revenue growth is forecast to occur at an average annual rate of 2.7% over the life of the Draft Contract."]

{"sheet":"Cash Flow Statement Form","index":5,"n_rows":48,"n_cols":12,"rows_kept":48,"cut":false,"hidden":false,"merged":[[47,0,47,11],[42,0,42,11],[43,0,43,11],[44,0,44,11],[45,0,45,11],[46,0,46,11]]}
["CASH FLOW STATEMENT FORM"]
[]
["Grey Cells Are Input Cells"]
[]
["Name of Offeror"]
[]
["CONCID",null,"CC-ACAD01X-24"]
[]
["Prospective Cash Flow Statement"]
[]
["Operating Activities","Year Zero",2021,{"$f":"+C11+1","v":2022},{"$f":"D11+1","v":2023},2024,2025,2026,2027,2028,2029,2030]
["Net Income"]
["Depreciation"]
["Amortization"]
["Change in working capital"]
["Other (describe)"]
[]
["Net Cash Provided (Used) by Operating Activities",{"$f":"B12+B13+B14+B15+B16","v":0},0,0,0,0,0,0,0,0,0,0]
[]
["Financing Activities"]
["Dividend"]
["Sale/Repurchase of Stock"]
["Borrowings/ Repayment of Debt"]
["Other (describe)"]
[]
["Net Cash Provided (Used) by Financing Activities",{"$f":"SUM(B21:B24)","v":0},0,0,0,0,0,0,0,0,0,0]
[]
["Investment Activities"]
["Personal Property Replacement (exlcuding buses)"]
["Investment in Bus Fleet"]
[]
["Inventory and Supplies"]
["Start-Up Expenses"]
["Working Capital"]
[]
["Other (describe)"]
[]
["Net Cash Provided (Used) by Investing Activities",{"$f":"SUM(B29:B36)","v":0},0,0,0,0,0,0,0,0,0,0]
[]
["Total Cash Flow",{"$f":"B18+B26+B38","v":0},0,0,0,0,0,0,0,0,0,0]
[]
["Notes"]
["1) Formulas included in this form are provided by the NPS as guidance only. The Offeror is responsible for its financial projections and their accuracy."]
["2) Yellow cells represent categories that need to be explained on the \"Cash Flow Statement Assumptions\" worksheet."]
["3) Investment activities should include entries for one time acquisition and disposal at the beginning and end of the Draft Contract term as well as cyclical or annual capital investments such as replacement. "]
["4) Estimates for capital expenditures in the Cash Flow Statements made prior to or during the first year after the start of the Draft Contract should be reflective of estimates provide in the Initial Investment and Start-up Costs form."]
["5) Clearly delineate between personal and real property and define your rationale and assumptions for each category. "]
["6) Since Repair and Maintenance Reserve (component renewal) activities are considered capital expenditures they should be included on the cash flow statement."]

{"sheet":"Cash Flow Statement Assumptions","index":6,"n_rows":19,"n_cols":2,"rows_kept":19,"cut":false,"hidden":false,"merged":[[11,1,11,5],[12,1,12,5],[13,1,13,5]]}
["CASH FLOW STATEMENT ASSUMPTIONS"]
[]
["Grey Cells Are Input Cells"]
[]
["Name of Offeror"]
[]
["CONCID",{"$f":"'Investment Assumptions'!C7","v":"CC-ACAD01X-24"}]
[]
["Prospective Cash Flow Statement"]
[]
["Investment Activities"]
["Personal Property Replacement (exlcuding bus improvements/upgrades/replacements)","Describe - Personal property replacement during the Draft Contract "]
["Bus Fleet Improvements/Upgrades/Replacements","Describe - Bus fleet improvements/upgrades/replacements during the Draft Contract"]
["Other","Describe - Other investments during the Draft Contract"]
[]
[]
["Notes"]
["In the description sections of this form, please provide an explanation of sufficient detail to allow a reviewer "]
["to fully understand how the estimates were determined. "]

{"sheet":" Recapture of Investment Form","index":7,"n_rows":31,"n_cols":7,"rows_kept":31,"cut":false,"hidden":false,"merged":[[30,0,30,7],[24,0,24,7],[25,0,25,7],[26,0,26,7],[27,0,27,7],[28,0,28,7],[29,0,29,7]]}
["RECAPTURE OF INVESTMENT FORM"]
[]
["Grey Cells Are Input Cells"]
[]
[null,"Name of Offeror"]
[]
[null,"CONCID","CC-ACAD01X-24"]
[]
[]
["Assets and Other"]
[]
[]
[]
[]
[null,null,null,"Buses"]
[null,null,null,"All Other Personal Property"]
[null,null,null,"Inventory and Supplies"]
[null,null,null,"Working Capital"]
[null,null,null,"Other (describe)"]
[]
[null,null,null,"Total of Recapture of Investments at the End of the Contract Term","Total",null,{"$f":"SUM(G15:G19)","v":0}]
[]
[]
["Notes"]
["1) The value of ending LSI is only a best guess estimate neither offeror nor the NPS is bound by the number presented above."]
["2) Reference the Draft Contract and exhibits for guidance on Leasehold Surrender Interest and Personal Property."]
["3) Formulas included in this form are provided by the NPS as guidance only. The Offeror is responsible for its financial projections and their accuracy."]
["4) Yellow cells represent categories that need to be explained on the \"Recapture of Investment Assumptions\" worksheet."]
["5) All Offerors must include their estimate of the ending value of all property and other assets at the end of the Draft Contract."]
["6) Recapture amounts entered into this form should not be included in the proforma income statement. "]
["7) Recapture amounts entered in this form should be included in the cash flow proforma as capital recapture in the final year of the Draft Contract."]

{"sheet":"Recapture of Inv Assumptions","index":8,"n_rows":23,"n_cols":5,"rows_kept":23,"cut":false,"hidden":false,"merged":[[15,4,15,7],[16,0,16,3],[16,4,16,7],[17,0,17,3],[17,4,17,7],[15,0,15,3],[10,0,12,7],[13,0,13,3],[13,4,13,7],[14,0,14,3],[14,4,14,7]]}
["RECAPTURE OF INVESTMENT ASSUMPTIONS"]
[]
["Grey Cells Are Input Cells"]
[]
[null,"Name of Offeror"]
[]
[null,"CONCID","CC-ACAD01X-24"]
[]
[]
["Assets and Other"]
["Please describe the method used to determine the values of the planned recoup of investments at the end of the Draft Contract.  "]
[]
[]
["Buses",null,null,null,"Describe"]
["All Other Personal Property",null,null,null,"Describe"]
["Inventory and Supplies",null,null,null,"Describe"]
["Working Capital",null,null,null,"Describe"]
["Other (describe)",null,null,null,"Describe"]
[]
[]
["Notes"]
["In the description sections of this form, please provide an explanation of sufficient detail to allow "]
["a reviewer to fully understand how the estimates were determined. "]

{"sheet":"CUA2018","index":9,"n_rows":33,"n_cols":16,"rows_kept":33,"cut":false,"hidden":true,"merged":[[0,0,0,7]]}
["2018 Statistics"]
[]
[null,"May 2018","June 2018","July 2018","August 2018","September 2018","October 2018","2018 Total"]
["Commercial Vehicles"]
["1-6",33,110,141,144,284,317,{"$f":"SUM(B5+C5+D5+E5+F5+G5)","v":1029},null,"1-6 passenger commercial vehicles not counted as \"buses\".  Rationale:  can fit into parking spaces.  (Up to 15-passenger van?)"]
["7-15",66,172,178,169,396,324,{"$f":"SUM(B6+C6+D6+E6+F6+G6)","v":1305}]
["16-25",2,12,13,9,28,20,84]
["26+",52,162,169,161,583,574,1701]
["Total",{"$f":"SUM(B5:B8)","v":153},{"$f":"SUM(C5:C8)","v":456},501,483,1291,1235,4119,null,null,{"$f":"G8*45","v":25830}]
["Concessions",null,null,null,null,null,null,null,null,null,{"$f":"G7*18","v":360}]
["Oli's Trolley",null,null,null,null,null,null,null,null,null,{"$f":"G6*10","v":3240}]
["People",1725,5584,7080,7734,8470,7245,{"$f":"SUM(B12+C12+D12+E12+F12+G12)","v":37838},null,null,{"$f":"SUM(K9:K11)","v":29430}]
["Buses",122,284,363,374,339,280,1762]
["National Park Tours"]
["People",782,3022,3298,3112,4066,3973,{"$f":"SUM(B15+C15+D15+E15+F15+G15)","v":18253}]
["Buses",41,108,106,104,120,113,592]
["Concessions Total"]
["People",{"$f":"B12+B15","v":2507},{"$f":"C12+C15","v":8606},10378,10846,12536,11218,56091,null,null,{"$f":"SUM(H6:H8)","v":3090}]
["Buses",{"$f":"B13+B16","v":163},392,469,478,459,393,2354]
[]
["Fee Waiver"]
["# Individuals",584,1425,288,380,371,213,{"$f":"SUM(B22+C22+D22+E22+F22+G22)","v":3261}]
[null,null,null,null,null,null,null,null,null,null,1435,1261,1390,1609,1701,{"$f":"(O23/K23)^0.25-1","v":4.342948110374989E-2}]
[null,null,null,null,null,null,null,null,null,null,11,14,48,58,84,{"$f":"(O24/K24)^0.25-1","v":0.66234687079172194}]
[null,null,null,null,null,null,null,null,null,null,281,694,782,1244,1305,0.46799997418292749]
[null,null,null,null,null,null,null,null,null,null,1727,1969,2220,2911,3090,0.15655565240455749]
[]
[]
[]
[null,null,null,null,null,null,null,{"$f":"H6*10","v":13050}]
[null,null,null,null,null,null,null,{"$f":"H7*18","v":1512}]
[null,null,null,null,null,null,null,{"$f":"H8*45","v":76545}]
[null,null,null,null,null,null,null,{"$f":"SUM(H30:H32)","v":91107}]